Cogmind - Beta 10.2 @@@ ROGUE MODE // 2021.06.17 @ 00:51:32 Player: puncake Result: Destroyed by G-50 Soldier with Heavy Laser Performance ------------- Evolutions (5) 2500 Regions Visited (12) 2400 Robots Destroyed (102) 510 Value Destroyed (4197) 4197 Prototype IDs (12) 240 Alien Tech Used (0) 0 Bonus (1532) 1532 TOTAL SCORE: 11379 Bonus ------- High Alert Combat Kills 435 Follower Combat Kills 711 Entered Garrisons 200 Used RIF Installer 500 Friendly Fire -314 Cogmind --------- Core Integrity 0/1000 Matter 256/300 Energy 157/170 System Corruption 34% Temperature Cool (15) Movement Walking (150) Ox1 Location -5/Upper Caves Parts ------- > --- POWER (1) -------- Micro Fission Core > --- PROPULSION (4) --- Improved Treads Improved Treads Carbon-fiber Leg Flexi-carbon Leg > --- UTILITY (9) ------ Advanced Heat Sink Large Storage Unit Advanced Signal Interpreter Terrain Scan Processor Advanced Targeting Computer Improved Target Analyzer Improved Target Analyzer Improved Core Analyzer Hacking Suite > --- WEAPON (3) ------- Wave Gun KE Penetrator Mass Driver > --- INVENTORY (10) --- Light Angular Momentum Engine Light Angular Momentum Engine Improved Treads Wheel Improved Heat Shielding High-capacity Storage Unit Improved Medium Armor Plating KE Penetrator Hypervelocity Gauss Cannon Improved Remote Datajack Peak State ------------ > --- POWER ------------ Angular Momentum Engine > --- PROPULSION ------- Medium Treads Armored Medium Treads Improved Carbon-fiber Leg Improved Titanium Leg > --- UTILITY ---------- Improved Sensor Array Advanced Signal Interpreter Terrain Scan Processor Advanced Targeting Computer Improved Target Analyzer Core Analyzer Improved Core Analyzer Improved Powered Armor Hacking Suite > --- WEAPON ----------- Tesla Rifle Disruptor Cannon Improved Remote Datajack > --- INVENTORY -------- Light Angular Momentum Engine Magnetic Acceleration Cannon Improved Proton Missile Launcher Improved Datajack [Rating: 76] Favorites ----------- Power Cold Fusion Reactor Engine Angular Momentum Engine Power Core Micro Fission Core Reactor Cold Fusion Reactor Propulsion Aluminum Leg Treads Improved Treads Leg Aluminum Leg Wheel Armored Huge Wheel Hover Unit Antigrav System Utility Medium Storage Unit Device Advanced Weight Redist. System Storage Medium Storage Unit Processor Advanced Signal Interpreter Hackware Hacking Suite Protection Layered Medium Armor Plating Weapon Heavy Machine Gun Energy Gun Advanced Beam Rifle Energy Cannon Advanced Beam Cannon Ballistic Gun Heavy Machine Gun Ballistic Cannon Enhanced Gauss Cannon Launcher Improved Proton Missile Launcher Special Weapon Improved Remote Datajack Special Melee Weapon Improved Datajack Build | -11 -10 -10 -9 -9 -8 -8 -8 -6 -6 -6 -5 -5 ------- Run | Scr Mat Min Mat Min Mat Sto Rec Fac Gar Fac Fac Upp Slots Evolved 10 | . . . 2 . 2 . . 4 . . 2 . Power . | . . . . . . . . . . . . . Propulsion 2 | . . . 2 . . . . . . . . . Utility 7 | . . . . . 2 . . 3 . . 2 . Weapon 1 | . . . . . . . . 1 . . . . Parts Attached 176 | 6 10 . 13 4 10 18 . 9 18 27 60 1 Power 13 | 1 2 . 2 . 1 1 . 1 . 3 2 . Engine 8 | 1 1 . 2 . 1 1 . . . 1 1 . Core 2 | . 1 . . . . . . . . . 1 . Reactor 3 | . . . . . . . . 1 . 2 . . Propulsion 48 | 2 3 . 5 2 3 7 . 2 5 6 12 1 Treads 12 | . . . . . 1 . . . 4 1 6 . Leg 32 | 2 3 . 4 2 2 7 . 2 1 4 4 1 Wheel 3 | . . . 1 . . . . . . 1 1 . Hover 1 | . . . . . . . . . . . 1 . Flight . | . . . . . . . . . . . . . Utility 36 | 1 2 . . 1 2 3 . 4 4 5 14 . Device 12 | . . . . . 2 . . 2 3 2 3 . Storage 3 | 1 1 . . . . . . . . . 1 . Processor 14 | . 1 . . . . 2 . 1 . 3 7 . Hackware 2 | . . . . . . 1 . 1 . . . . Protection 5 | . . . . 1 . . . . 1 . 3 . Artifact . | . . . . . . . . . . . . . Weapon 79 | 2 3 . 6 1 4 7 . 2 9 13 32 . Energy Gun 29 | . 1 . 2 . 2 4 . 1 3 3 13 . Energy Cannon 9 | . . . 1 . 1 2 . . 1 2 2 . Ballistic Gun 18 | 2 2 . 3 . 1 . . 1 4 4 1 . Ballistic Cannon 6 | . . . . . . . . . . 3 3 . Launcher 8 | . . . . 1 . 1 . . 1 . 5 . Special Weapon 7 | . . . . . . . . . . . 7 . Impact Weapon . | . . . . . . . . . . . . . Slashing Weapon . | . . . . . . . . . . . . . Piercing Weapon . | . . . . . . . . . . . . . Special Melee Weapon 2 | . . . . . . . . . . 1 1 . Unidentified Prototypes 12 | . . . 3 . 2 5 . 1 . . 1 . Parts Lost 84 | . . . 4 4 4 3 . . 13 23 33 . Power 7 | . . . 1 1 . . . . . 3 2 . Propulsion 26 | . . . 1 2 3 1 . . 5 5 9 . Utility 14 | . . . . 1 . 2 . . 3 4 4 . Weapon 37 | . . . 2 . 1 . . . 5 11 18 . Highest Loss Streak 9 | . . . 2 3 3 2 . . 9 6 7 . Average Slot Usage (%) 90 | . 91 100 97 96 75 89 90 84 95 88 85 100 Engine 3 | . 11 . 3 9 6 9 9 2 . . 3 . Core 1 | . 1 14 7 . . . . . . . 1 5 Reactor 2 | . . . . . . . . 3 6 5 . . Treads 5 | . . . . . 5 9 9 . 16 3 4 11 Leg 17 | . 25 28 35 34 23 26 27 26 8 11 7 11 Wheel 1 | . . . 7 9 . . . . . 1 1 . Device 7 | . . . . . 12 9 . 7 9 12 4 5 Storage 6 | . 14 14 11 11 9 9 9 6 6 6 2 5 Processor 17 | . 11 14 11 9 . 7 9 9 13 19 32 35 Hackware 4 | . . . . . . . 9 6 9 6 5 5 Protection 1 | . . . . . . . . . 4 . 2 . Energy Gun 5 | . 1 14 6 9 5 9 9 12 4 1 4 5 Energy Cannon 2 | . . . 1 . . 8 9 5 . 1 1 . Ballistic Gun 7 | . 26 14 13 11 10 . . . 13 10 . 5 Ballistic Cannon 2 | . . . . . . . . . . 5 3 5 Naked Turns . | . . . . . . . . . . . . . Heaviest Build 48 | 9 17 17 22 22 33 32 24 37 48 46 48 41 Greatest Support 103 | 20 20 20 40 33 33 35 35 57 103 80 55 35 Greatest Overweight (x) 10 | 2 3 . . . 2 1 . . 2 10 8 2 Average Overweight (x) . | . . . . . . . . . . . . 1 Largest Inventory Capacity 10 | 6 8 8 8 8 8 8 8 8 8 8 10 10 Average Capacity 7 | 5 7 8 8 8 8 8 8 8 8 8 6 10 Most Carried 10 | 6 8 8 8 8 8 8 8 8 8 8 10 10 Average Carried 7 | 3 6 7 7 7 5 7 7 7 7 7 5 10 Final Capacity 10 | 6 8 8 8 8 8 8 8 8 8 8 10 10 Final Carried 10 | 6 8 8 8 6 8 7 8 8 7 8 10 10 Class Distribution -------------------- 32% | Scavenger-Gunner 29% | Mutant 21% | Scavenger-Mutant 6% | Commander-Gunner 5% | Commander-Mutant 3% | Gunner Dominant Class ---------------- Mutant | -10/Materials Mutant | -10/Mines Scavenger-Mutant | -9/Materials Mutant | -9/Mines Scavenger-Mutant | -8/Materials Mutant | -8/Storage Commander-Mutant | -8/Recycling Commander-Gunner | -6/Factory Scavenger-Gunner | -6/Garrison Scavenger-Gunner | -6/Factory Scavenger-Mutant | -5/Factory Scavenger-Gunner | -5/Upper Caves Resources | -11 -10 -10 -9 -9 -8 -8 -8 -6 -6 -6 -5 -5 ----------- Run | Scr Mat Min Mat Min Mat Sto Rec Fac Gar Fac Fac Upp Matter Collected 3390 | 260 98 . 211 126 222 210 15 50 593 720 806 79 Remotely . | . . . . . . . . . . . . . Salvage Created 5361 | . 135 . 654 290 424 734 69 117 887 908 1079 64 Parts 252 | . 6 . 34 23 17 40 3 3 42 28 55 1 Haulers Intercepted 8 | . . . 1 . . 5 . 1 . . 1 . Recyclers Shooed 7 | . . . 1 . 1 2 . . . 1 2 . Parts Field Recycled . | . . . . . . . . . . . . . Retrieved Matter . | . . . . . . . . . . . . . Parts Self-Destructed . | . . . . . . . . . . . . . Prevented . | . . . . . . . . . . . . . Kills | -11 -10 -10 -9 -9 -8 -8 -8 -6 -6 -6 -5 -5 ------- Run | Scr Mat Min Mat Min Mat Sto Rec Fac Gar Fac Fac Upp Combat Hostiles Destroyed 81 | . 3 . 9 12 9 7 . . 15 15 11 . Guns 57 | . 3 . 7 9 9 2 . . 14 7 6 . Cannons 13 | . . . 2 . . 3 . . . 7 1 . AOE 7 | . . . . 3 . 2 . . 1 . 1 . Classes Destroyed 14 | . 1 . 4 4 . 1 . . 1 1 2 . Worker 3 | . . . . 1 . . . . . . 2 . Builder 2 | . . . . . . . . . . . 2 . Tunneler 1 | . . . . . . . . . . . 1 . Hauler 8 | . . . 1 . . 5 . 1 . . 1 . Recycler 8 | . . . 2 1 1 1 1 . . 1 1 . Watcher 2 | . . . 1 . . 1 . . . . . . Swarmer 14 | . . . . 6 3 . . . 5 . . . Grunt 34 | . 3 . 5 1 5 6 . . 5 4 5 . Duelist 2 | . . . . 1 . . . . . 1 . . Sentry 16 | . . . 4 . 1 1 . . 4 3 3 . Hunter 5 | . . . . . . 1 . . . 4 . . Programmer 6 | . . . . . . . . . . 3 3 . Behemoth 1 | . . . . . . . . . 1 . . . Assembled 4 | . . . . 4 . . . . . . . . Best Kill Streak 7 | . 2 . 3 4 4 4 1 1 4 2 7 . Combat Bots Only 4 | . 2 . 3 4 4 3 . . 4 2 4 . Max Kills in Single Turn 3 | . 1 . 1 2 2 2 1 1 2 1 3 . Gunslinging 1 | . . . . 1 1 . . . 1 . . . Exploded 2 | . . . . 2 . 1 . . 1 . 1 . Melee . | . . . . . . . . . . . . . Uniques/NPCs Destroyed . | . . . . . . . . . . . . . Combat | -11 -10 -10 -9 -9 -8 -8 -8 -6 -6 -6 -5 -5 -------- Run | Scr Mat Min Mat Min Mat Sto Rec Fac Gar Fac Fac Upp Damage Taken 12506 | . 180 . 543 692 487 786 . . 2183 2846 4750 39 Core 2061 | . 48 . 57 104 52 90 . . 239 464 988 19 Absorbed by Shields . | . . . . . . . . . . . . . Core Remaining (%) 66 | 100 . 80 . 59 . . 74 . . 17 . . Volleys Fired 394 | . 20 . 44 28 24 43 1 3 50 76 103 2 Largest 3 | . 2 . 2 2 2 2 2 3 3 3 3 3 Hottest 206 | . 40 . 88 68 68 123 118 179 148 190 206 171 Shots Fired 810 | . 40 . 84 51 48 86 2 9 131 205 148 6 Gun 599 | . 40 . 78 48 48 44 1 6 121 127 82 4 Cannon 177 | . . . 6 . . 42 1 3 3 78 42 2 Launcher 14 | . . . . 3 . . . . 7 . 4 . Special 20 | . . . . . . . . . . . 20 . Kinetic 412 | . 40 . 54 28 33 . . . 86 157 10 4 Thermal 161 | . . . 24 . . 60 1 6 31 17 20 2 Explosive 3 | . . . . 3 . . . . . . . . Electromagnetic 214 | . . . 6 20 15 26 1 3 14 31 98 . Robot Hit Streak 16 | . 9 . 12 11 8 16 3 5 12 16 15 10 Robot Miss Streak 6 | . 3 . 2 3 2 3 . 2 6 6 3 1 Penetration Max 1 | . . . . . . . . . . 1 . . Secondary Targets 7 | . 1 . . 1 1 . . . 4 . . . Max Gunslinging Chain 1 | . 1 . . 1 1 . . . 1 . . . Shots Hit Robots 583 | . 28 . 57 34 36 54 2 6 95 147 120 4 Core Hits 278 | . 9 . 21 29 22 24 2 3 64 54 49 1 Critical Hits 11 | . 1 . . 1 . 2 . 1 . 5 1 . Critical Kills 4 | . . . . 1 . 2 . . . 1 . . Critical Parts Destroyed 6 | . 1 . . . . . . 1 . 3 1 . Melee Attacks 7 | . . . . . . . . . . . 7 . Impact . | . . . . . . . . . . . . . Slashing . | . . . . . . . . . . . . . Piercing . | . . . . . . . . . . . . . Sneak Attacks 1 | . . . . . . . . . . . 1 . Combat Hostiles . | . . . . . . . . . . . . . Follow-up Attacks . | . . . . . . . . . . . . . Damage Inflicted 12142 | . 227 . 718 1096 565 1872 49 125 2388 2943 2088 71 Guns 6993 | . 227 . 653 485 565 626 28 85 1651 1376 1226 71 Cannons 2652 | . . . 65 . . 578 21 40 69 1551 328 . Explosions 2362 | . . . . 611 . 668 . . 668 . 415 . Melee . | . . . . . . . . . . . . . Ramming 135 | . . . . . . . . . . 16 119 . Kinetic 4741 | . 227 . 381 287 312 . . . 1172 2163 152 47 Thermal 3214 | . . . 272 57 . 1397 21 80 509 212 642 24 Explosive 554 | . . . . 554 . . . . . . . . Electromagnetic 3498 | . . . 65 198 253 475 28 45 707 552 1175 . Impact . | . . . . . . . . . . . . . Slashing . | . . . . . . . . . . . . . Piercing . | . . . . . . . . . . . . . Highest Corruption 34 | . . . . 4 . . . . . 6 34 34 Average Corruption 16 | . . . . 4 . . . . . 2 20 34 Corruption Purged . | . . . . . . . . . . . . . Effects 150 | . . . . 2 . . . . . 21 103 24 Message Errors 25 | . . . . 1 . . . . . 4 15 5 Matter Fused 20 | . . . . . . . . . . 1 14 5 Heat Flow Errors 10 | . . . . . . . . . . 2 6 2 Energy Discharges 18 | . . . . 1 . . . . . 6 6 5 Data Loss (minor) 13 | . . . . . . . . . . 1 9 3 Data Loss (major) 4 | . . . . . . . . . . . 4 . Misfires 3 | . . . . . . . . . . 1 2 . Alerts 1 | . . . . . . . . . . . 1 . Misdirections 16 | . . . . . . . . . . . 12 4 Targeting Errors 30 | . . . . . . . . . . 5 25 . Weapon Failures 10 | . . . . . . . . . . 1 9 . Overload Shots . | . . . . . . . . . . . . . Overflow Damage 180 | . . . . 13 . 43 . . . 123 1 . Projectiles 123 | . . . . . . . . . . 123 . . Explosions 57 | . . . . 13 . 43 . . . . 1 . Melee . | . . . . . . . . . . . . . Knockbacks 11 | . . . . . . . . . . 11 . . Impact . | . . . . . . . . . . . . . Kinetic 11 | . . . . . . . . . . 11 . . Secondary . | . . . . . . . . . . . . . Self-Inflicted Damage 273 | . . . . 117 . 50 . . . 6 100 . Shots 8 | . . . . 3 . 1 . . . . 4 . Rammed 43 | . . . . . . . . . . 5 38 . Targets Rammed 46 | . . . . . . . . . . 5 41 . Kicked 3 | . . . . . . . . . . . 3 . Crushed . | . . . . . . . . . . . . . Highest Temperature 413 | . 18 . 243 9 39 405 42 151 120 409 413 198 Average Temperature 83 | . 8 . 49 5 18 89 26 68 26 125 91 76 Received Heat Transfer 2236 | . 90 . 198 70 198 252 . . 723 315 372 18 Effects 3 | . . . . . . 2 . . . 1 . . Energy Bleed 2 | . . . . . . 1 . . . 1 . . Matter Decay 1 | . . . . . . 1 . . . . . . Siege Activations . | . . . . . . . . . . . . . Robots Corrupted 6 | . . . . . . . . . 1 2 3 . Combat Hostiles 4 | . . . . . . . . . . 1 3 . Parts Fried 23 | . . . . . . 3 . . 1 6 13 . Impact Corruptions . | . . . . . . . . . . . . . Robots Melted . | . . . . . . . . . . . . . Combat Hostiles . | . . . . . . . . . . . . . Parts Melted 10 | . . . 1 . . 2 . . 3 . 4 . Heat Transferred 5323 | . . . 666 50 . 2069 37 148 959 461 896 37 Parts Sabotaged . | . . . . . . . . . . . . . Parts Stolen . | . . . . . . . . . . . . . Parts Stripped . | . . . . . . . . . . . . . Power Chain Reactions 7 | . . . . 1 . 4 . . 1 . 1 . Missiles Intercepted . | . . . . . . . . . . . . . Alert | -11 -10 -10 -9 -9 -8 -8 -8 -6 -6 -6 -5 -5 ------- Run | Scr Mat Min Mat Min Mat Sto Rec Fac Gar Fac Fac Upp Peak Influence 1289 | . 98 37 319 275 244 320 182 1024 1289 691 352 . Initial 976 | . . 37 14 70 29 102 124 976 716 676 128 . Average 318 | . 23 37 140 127 99 164 156 1004 993 304 111 . Maximum Alert Level 4 | . . . 1 1 1 1 . 3 4 2 1 . Low Security (%) 61 | 100 100 100 85 87 84 61 100 . . 53 85 . Level 1 12 | . . . 14 12 15 38 . . . 9 14 . Level 2 8 | . . . . . . . . . . 36 . . Level 3 13 | . . . . . . . . 100 69 . . . Level 4 4 | . . . . . . . . . 29 . . . Level 5 . | . . . . . . . . . . . . . High Security . | . . . . . . . . . . . . . Max Security . | . . . . . . . . . . . . . Squads Dispatched 15 | . . . 2 . 1 3 . 1 . 6 2 . Investigation . | . . . . . . . . . . . . . Extermination 4 | . . . . . . . . . . 3 1 . Reinforcement 10 | . . . 2 . 1 3 . 1 . 2 1 . Assault . | . . . . . . . . . . . . . Garrison 1 | . . . . . . . . . . 1 . . Intercept . | . . . . . . . . . . . . . Construction Impeded 3 | . . . . . . 2 . . . . 1 . Haulers Reinforced 1 | . . . . . . . . 1 . . . . Stealth | -11 -10 -10 -9 -9 -8 -8 -8 -6 -6 -6 -5 -5 --------- Run | Scr Mat Min Mat Min Mat Sto Rec Fac Gar Fac Fac Upp Distress Signals 8 | . . . 2 . . 2 . . . 1 3 . Communications Jammed . | . . . . . . . . . . . . . Distress Signals . | . . . . . . . . . . . . . Times Spotted 173 | . 9 . 18 29 9 20 . 1 23 24 36 4 Peak Tracking Total 18 | . 4 . 5 18 4 7 2 1 4 4 8 5 Tactical Retreats 12 | . . . 1 1 1 . . . 1 5 3 . Traps | -11 -10 -10 -9 -9 -8 -8 -8 -6 -6 -6 -5 -5 ------- Run | Scr Mat Min Mat Min Mat Sto Rec Fac Gar Fac Fac Upp Traps Triggered 9 | . 3 . . . . . . . 3 3 . . Indirectly . | . . . . . . . . . . . . . Trap Hack Attempts . | . . . . . . . . . . . . . Triggered . | . . . . . . . . . . . . . Disarmed . | . . . . . . . . . . . . . Reprogrammed . | . . . . . . . . . . . . . Reused . | . . . . . . . . . . . . . Traps Extracted . | . . . . . . . . . . . . . Installed . | . . . . . . . . . . . . . Triggered . | . . . . . . . . . . . . . Machines | -11 -10 -10 -9 -9 -8 -8 -8 -6 -6 -6 -5 -5 ---------- Run | Scr Mat Min Mat Min Mat Sto Rec Fac Gar Fac Fac Upp Machines Disabled 17 | . . . . . . 5 . . 3 4 5 . Max in Single Turn 2 | . . . . . . 1 . . 1 1 2 . Garrison Relay 2 | . . . . . . . . . 2 . . . Machines Sabotaged . | . . . . . . . . . . . . . Garrisons Compromised . | . . . . . . . . . . . . . Overloaded Fab Kills . | . . . . . . . . . . . . . Fab Network Shutdowns . | . . . . . . . . . . . . . Hacking | -11 -10 -10 -9 -9 -8 -8 -8 -6 -6 -6 -5 -5 --------- Run | Scr Mat Min Mat Min Mat Sto Rec Fac Gar Fac Fac Upp Machines Accessed 23 | . 2 1 4 . . 4 1 2 . 6 3 . Terminals 15 | . 1 . 2 . . 2 1 1 . 5 3 . Fabricators . | . . . . . . . . . . . . . Repair Stations . | . . . . . . . . . . . . . Recycling Units 6 | . 1 . 2 . . 2 . . . 1 . . Scanalyzers . | . . . . . . . . . . . . . Garrison Access 1 | . . . . . . . . 1 . . . . Total Hacks 42 | . 6 1 5 . . 5 2 5 . 13 5 . Successful 16 | . 4 1 2 . . 4 . 2 . 3 . . Failed 26 | . 2 . 3 . . 1 2 3 . 10 5 . Catastrophic 2 | . . . 1 . . . . . . 1 . . Database Lockouts . | . . . . . . . . . . . . . Manual 19 | . 1 . 2 . . 5 2 3 . 6 . . Terminals 28 | . 2 . 2 . . 3 2 3 . 11 5 . Fabricators . | . . . . . . . . . . . . . Repair Stations . | . . . . . . . . . . . . . Recycling Units 11 | . 4 . 3 . . 2 . . . 2 . . Scanalyzers . | . . . . . . . . . . . . . Garrison Access 2 | . . . . . . . . 2 . . . . Terminal Hacks 6 | . 1 1 . . . 2 . . . 2 . . Open Door 1 | . . 1 . . . . . . . . . . Branch Access Points 2 | . 1 . . . . 1 . . . . . . Unreport Threat 3 | . . . . . . 1 . . . 2 . . Fabricator Hacks . | . . . . . . . . . . . . . Repair Station Hacks . | . . . . . . . . . . . . . Recycling Unit Hacks 7 | . 2 . 2 . . 2 . . . 1 . . Retrieve Matter 1 | . 1 . . . . . . . . . . . Retrieve Components 6 | . 1 . 2 . . 2 . . . 1 . . Scanalyzer . | . . . . . . . . . . . . . Garrison Access Hacks 1 | . . . . . . . . 1 . . . . Unlock Access 1 | . . . . . . . . 1 . . . . Unauthorized Hacks 2 | . 1 . . . . . . 1 . . . . Terminals 2 | . 1 . . . . . . 1 . . . . Operators 2 | . 1 . . . . . . 1 . . . . Fabricators . | . . . . . . . . . . . . . Repair Stations . | . . . . . . . . . . . . . Recycling Units . | . . . . . . . . . . . . . Scanalyzers . | . . . . . . . . . . . . . Garrison Access . | . . . . . . . . . . . . . Data Cores Recovered . | . . . . . . . . . . . . . Used . | . . . . . . . . . . . . . Hacking Detections 18 | . 1 . 4 . . 2 1 1 . 6 3 . Full Trace Events . | . . . . . . . . . . . . . Feedback Events . | . . . . . . . . . . . . . Feedback Blocked . | . . . . . . . . . . . . . Robot Schematics Acquired . | . . . . . . . . . . . . . Robots Built . | . . . . . . . . . . . . . Matter . | . . . . . . . . . . . . . Time . | . . . . . . . . . . . . . Total Robot Build Rating . | . . . . . . . . . . . . . Part Schematics Acquired . | . . . . . . . . . . . . . Parts Built . | . . . . . . . . . . . . . Matter . | . . . . . . . . . . . . . Time . | . . . . . . . . . . . . . Total Part Build Rating . | . . . . . . . . . . . . . Parts Repaired . | . . . . . . . . . . . . . Time . | . . . . . . . . . . . . . Parts Recycled . | . . . . . . . . . . . . . Recycled Matter . | . . . . . . . . . . . . . Retrieved Matter . | . . . . . . . . . . . . . Retrieved Components 32 | . 1 . 10 . . 19 . . . 2 . . Parts Scanalyzed . | . . . . . . . . . . . . . Part Schematics Acquired . | . . . . . . . . . . . . . Parts Damaged . | . . . . . . . . . . . . . Bothacking | -11 -10 -10 -9 -9 -8 -8 -8 -6 -6 -6 -5 -5 ------------ Run | Scr Mat Min Mat Min Mat Sto Rec Fac Gar Fac Fac Upp Used RIF Installer 1 | . . . . . . . . . 1 . . . Robots Hacked 8 | . . . . . . . . . . . 8 . Non-combat 8 | . . . . . . . . . . . 8 . Combat . | . . . . . . . . . . . . . Robot Hacks Applied 11 | . . . . . . . . . . . 11 . parse_system 1 | . . . . . . . . . . . 1 . no_distress 2 | . . . . . . . . . . . 2 . find_fabricator 1 | . . . . . . . . . . . 1 . find_recycling 2 | . . . . . . . . . . . 2 . ignore_parts 5 | . . . . . . . . . . . 5 . Relay Couplers Released 10 | . . . . . . . . . 10 . . . Machine Destruction 10 | . . . . . . . . . 10 . . . Robots Rewired 12 | . . . . . . . 12 . . . . . Allies Hacked . | . . . . . . . . . . . . . Hacks Repelled . | . . . . . . . . . . . . . Allies | -11 -10 -10 -9 -9 -8 -8 -8 -6 -6 -6 -5 -5 -------- Run | Scr Mat Min Mat Min Mat Sto Rec Fac Gar Fac Fac Upp Total Allies 23 | . . . . 1 . 10 12 . . . . . Largest Group 15 | . . . . 1 . 10 15 12 12 . . . Highest-Rated Group 186 | . . . . 31 . 173 186 150 150 . . . Highest-Rated Ally 34 | . . . . 31 . 29 34 34 34 . . . Total Orders 1 | . . . . . 1 . . . . . . . EXPLORE 1 | . . . . . 1 . . . . . . . Ally Attacks 155 | . . . . 3 2 66 32 7 45 . . . Total Damage 1964 | . . . . 43 . 842 239 95 745 . . . Kills 28 | . . . . 1 . 13 6 1 7 . . . Allies Corrupted . | . . . . . . . . . . . . . Allies Melted . | . . . . . . . . . . . . . Intel | -11 -10 -10 -9 -9 -8 -8 -8 -6 -6 -6 -5 -5 ------- Run | Scr Mat Min Mat Min Mat Sto Rec Fac Gar Fac Fac Upp Robot Analysis Total . | . . . . . . . . . . . . . Derelict Logs Recovered 1 | . . . . 1 . . . . . . . . Drone Launches 2 | . . . . . 2 . . . . . . . Drone Recoveries . | . . . . . . . . . . . . . Exploration | -11 -10 -10 -9 -9 -8 -8 -8 -6 -6 -6 -5 -5 ------------- Run | Scr Mat Min Mat Min Mat Sto Rec Fac Gar Fac Fac Upp Turns Passed 8643 | 76 275 96 570 509 323 1068 310 307 1137 1983 1611 378 Spaces Moved 4559 | 51 161 57 255 331 133 611 112 219 590 1038 770 231 Core 153 | 14 2 . . . . . . . . 3 134 . Treads 652 | . . . . . . . . . 276 79 216 81 Legs 3091 | 37 159 57 255 331 133 611 112 219 314 652 61 150 Wheels 577 | . . . . . . . . . . 304 273 . Hover 86 | . . . . . . . . . . . 86 . Flight . | . . . . . . . . . . . . . Fastest Speed 50 | 50 120 120 120 120 120 120 120 122 122 110 50 150 Average Speed 131 | 114 120 120 120 120 147 131 120 122 153 128 125 161 Slowest Speed 550 | 150 200 120 120 120 180 150 120 122 180 550 450 180 Overloaded Moves . | . . . . . . . . . . . . . Propulsion Burnouts . | . . . . . . . . . . . . . Robots Hopped . | . . . . . . . . . . . . . Cave-ins Triggered . | . . . . . . . . . . . . . Exploration Rate (%) 34 | 5 44 20 32 61 14 85 21 8 72 28 21 38 Regions Visited 12 Branch Regions 5 Pre-discovered Areas . | . . . . . . . . . . . . . Known Exits Taken 7 | . 1 . . . 1 1 1 1 . 1 1 . Unknown Exits Taken 4 | 1 . 1 1 1 . . . . . . . . Scrap Searched 2 | . . . . 2 . . . . . . . . Spaces Dug . | . . . . . . . . . . . . . Terrain Destroyed 94 | . . . . 22 . 20 . . 1 13 36 2 Melee . | . . . . . . . . . . . . . Projectile 17 | . . . . . . . . . . 13 2 2 AOE 77 | . . . . 22 . 20 . . 1 . 34 . Terrain Rammed . | . . . . . . . . . . . . . Walls Destroyed . | . . . . . . . . . . . . . Machines Disabled . | . . . . . . . . . . . . . Actions | -11 -10 -10 -9 -9 -8 -8 -8 -6 -6 -6 -5 -5 --------- Run | Scr Mat Min Mat Min Mat Sto Rec Fac Gar Fac Fac Upp Total 6454 | 68 209 85 440 391 210 791 285 251 712 1524 1253 235 Wait 916 | . 9 26 117 28 32 97 25 12 14 343 213 . Move 4547 | 50 160 56 254 330 132 610 111 218 589 1037 769 231 Hop . | . . . . . . . . . . . . . Pick Up 119 | 12 5 1 6 1 9 7 1 4 11 28 34 . Fast Attach 58 | . 6 . 4 . 4 3 . 5 14 2 20 . Attach 86 | 6 2 . 6 3 5 3 . 2 9 21 29 . Detach 9 | . . . . . . . . . . 1 8 . Swap 42 | . 2 . 3 1 1 12 . 2 5 4 11 1 Drop 67 | . 5 2 6 . 3 16 . 5 5 7 17 1 Fire 394 | . 20 . 44 28 24 43 1 3 50 76 103 2 Melee 7 | . . . . . . . . . . . 7 . Ram 5 | . . . . . . . . . . 2 3 . Kick 8 | . . . . . . . . . . 3 5 . Crush 34 | . . . . . . . . . . . 34 . Escape Stasis 15 | . . . . . . . . . 15 . . . Rewire 147 | . . . . . . . 147 . . . . . Trap . | . . . . . . . . . . . . . Miscellaneous . | . . . . . . . . . . . . . Route ------- -11/Scrapyard -10/Materials (discovered 2 exits: *Min x2) -10/Mines -9/Materials -9/Mines -8/Materials -8/Storage -8/Recycling -6/Factory -6/Garrison (discovered 3 exits: *Fac x3) -6/Factory (discovered 2 exits: *Fac / *Low) -5/Factory -5/Upper Caves History --------- Turn | Location | Event 12 | -11/Scrapyard | Discovered new exit (range 15) 77 | -11/Scrapyard | Entered Materials 207 | -10/Materials | Identified exit to Mines 316 | -10/Materials | Build established: Mutant 352 | -10/Materials | Entered Mines 414 | -10/Mines | Discovered new exit (range 11) 431 | -10/Mines | Found the Drone Emporium 437 | -10/Mines | Found Prototype Device 448 | -10/Mines | Entered Materials 448 | -9/Materials | Evolved 2 slots: Propulsion x2 754 | -9/Materials | Build established: Scavenger-Mutant 958 | -9/Materials | Discovered new exit (range 12) 1018 | -9/Materials | Entered Mines 1037 | -9/Mines | Met a Derelict bent on vengeance 1228 | -9/Mines | Deemed a non-threat by the Exiles lab entrance 1270 | -9/Mines | Build established: Mutant 1404 | -9/Mines | Received a Mining Laser from a helpful Derelict 1445 | -9/Mines | Assembled infested the area 1492 | -9/Mines | Lost 3 parts (1p1n1u) 1519 | -9/Mines | Discovered new exit (range 6) 1527 | -9/Mines | Entered Materials 1527 | -8/Materials | Evolved 2 slots: Utility x2 1527 | -8/Materials | Identified Bomb Drone Bay 1528 | -8/Materials | Identified exit to Storage 1611 | -8/Materials | Lost 3 parts (3n) 1850 | -8/Materials | Entered Storage 1911 | -8/Storage | Build established: Scavenger-Mutant 2027 | -8/Storage | Assisted by bots powering up and referring to "LRC-V3" 2317 | -8/Storage | Build established: Commander-Mutant 2708 | -8/Storage | Build established: Mutant 2764 | -8/Storage | Identified exit to Recycling 2902 | -8/Storage | Used back door to open Recycling access 2918 | -8/Storage | Entered Recycling 2918 | -8/Recycling | Accompanied by 3 allies 2977 | -8/Recycling | Spotter reported a threat 2977 | -8/Recycling | Spotter reported a threat 2982 | -8/Recycling | Spotter reported a threat 2989 | -8/Recycling | Spotter reported a threat 2998 | -8/Recycling | Spotter reported a threat 3020 | -8/Recycling | Spotter reported a threat 3202 | -8/Recycling | Discovered new exit (range 5) 3212 | -8/Recycling | Identified exit to Factory 3228 | -8/Recycling | Entered Factory 3228 | -6/Factory | Accompanied by 12 allies 3228 | -6/Factory | Evolved 4 slots: Utility x3, Weapon x1 3521 | -6/Factory | Identified exit to Garrison 3535 | -6/Factory | Entered Garrison 3535 | -6/Garrison | Accompanied by 12 allies 3548 | -6/Garrison | Build established: Commander-Gunner 3684 | -6/Garrison | Triggered checkpoint 3755 | -6/Garrison | Spotted B-75 Beast 3764 | -6/Garrison | Triggered checkpoint 3778 | -6/Garrison | Destroyed B-75 Beast 3778 | -6/Garrison | Triggered checkpoint 3821 | -6/Garrison | Triggered checkpoint 3841 | -6/Garrison | Triggered checkpoint 3868 | -6/Garrison | Lost 9 parts (4n2u3w) 3986 | -6/Garrison | Discovered new exit (range 9) 4028 | -6/Garrison | Triggered checkpoint 4085 | -6/Garrison | Garrison Relay disabled 4157 | -6/Garrison | Identified exit to Factory 4163 | -6/Garrison | Build established: Scavenger-Gunner 4316 | -6/Garrison | Triggered checkpoint 4374 | -6/Garrison | Garrison Relay disabled 4436 | -6/Garrison | Discovered exit to Factory (range 10) 4632 | -6/Garrison | Discovered exit to Factory (range 13) 4665 | -6/Garrison | Installed Relay Interface Framework 4672 | -6/Garrison | Entered Factory 4807 | -6/Factory | Lost 5 parts (1p2n1u1w) 4883 | -6/Factory | Lost 4 parts (2n2w) 5126 | -6/Factory | Core integrity fell below 50% 5165 | -6/Factory | Lost 6 parts (1n3u2w) 5809 | -6/Factory | Garrison activated, responded to threat 6164 | -6/Factory | Discovered new exit (range 16) 6198 | -6/Factory | Identified exit to Lower Caves 6370 | -6/Factory | Lost 3 parts (1p2w) 6444 | -6/Factory | Core integrity fell below 20% 6629 | -6/Factory | Discovered new exit (range 15) 6644 | -6/Factory | Identified exit to Factory 6655 | -6/Factory | Entered another Factory area 6655 | -5/Factory | Evolved 2 slots: Utility x2 6923 | -5/Factory | Build established: Mutant 7027 | -5/Factory | Lost 4 parts (2n2w) 7068 | -5/Factory | System corruption reached 10% 7104 | -5/Factory | Lost 5 parts (1n2u2w) 7259 | -5/Factory | Found Imp. Powered Armor 7691 | -5/Factory | Lost 7 parts (2p2n3w) 7691 | -5/Factory | System corruption reached 30% 7717 | -5/Factory | Core integrity fell below 50% 8025 | -5/Factory | Core integrity fell below 20% 8060 | -5/Factory | Lost 7 parts (1n6w) 8065 | -5/Factory | Build established: Scavenger-Mutant 8153 | -5/Factory | Spotted B-75 Beast 8189 | -5/Factory | Discovered new exit (range 13) 8203 | -5/Factory | Lost 4 parts (1n3w) 8220 | -5/Factory | Identified exit to Upper Caves 8266 | -5/Factory | Entered Upper Caves 8512 | -5/Upper Caves | Build established: Scavenger-Gunner 8644 | -5/Upper Caves | Destroyed by G-50 Soldier with Heavy Laser Last Messages --------------- 08412_ Acquired 64 matter. 08414_ 43>7UW/DMXYTKGS2PTQU7RBBTY 08415_ Dropped Carbon-fiber Leg. 08449_ System corrupted: Energy discharge (-54). 08465_ TDD/HMEV5